bitfinex-derivatives/quotes_SOLF0:USTF0_20250206
["timestamp","ask_amount","ask_price","bid_price","bid_amount"]
[1738831243743,0.03559913,201.89,201.85,0.0338047]
[1738831246139,4.9512,201.88,201.85,0.0338047]
[1738831246647,0.03559913,201.89,201.85,0.0338047]
[1738831247751,4.9513,201.88,201.85,0.0338047]
[1738831248051,0.03559913,201.89,201.85,0.0338047]
[1738831248549,4.9517,201.87,201.85,0.0338047]
[1738831248747,0.03559913,201.89,201.85,0.0338047]
[1738831249840,4.9517,201.86,201.85,0.0338047]
[1738831250254,4.9525,201.83,201.77,18.21608241]
[1738831250450,13.26218241,201.89,201.74,13.26218241]
[1738831250751,13.26218241,201.86,201.71,13.26218241]
[1738831250958,4.9538,201.78,201.72,4.9551]
[1738831251453,0.03373984,201.77,201.73,0.03558594]
[1738831252252,0.03373984,201.77,201.74,13.26218241]
[1738831252951,0.03373984,201.77,201.76,4.9542]
[1738831253157,1.6192,201.85,201.74,13.26218241]
[1738831253455,1.6192,201.85,201.78,13.26218241]
[1738831254155,1.6192,201.85,201.79,0.03203683]
[1738831254352,0.0376879,201.84,201.79,0.03203683]
[1738831254855,0.0376879,201.84,201.79,4.98543683]
[1738831258155,0.0376879,201.84,201.81,18.21498241]
[1738831258350,0.0376879,201.84,201.81,13.26218241]
[1738831258961,0.0376879,201.84,201.83,4.9524]
[1738831259361,0.0376879,201.84,201.81,13.26218241]
[1738831260464,0.0376879,201.84,201.79,0.03203683]
[1738831260853,0.0376879,201.84,201.81,13.26218241]
[1738831261866,0.0376879,201.84,201.81,18.21508241]
[1738831262163,0.0376879,201.84,201.81,13.26218241]
[1738831262564,0.0376879,201.84,201.79,0.03203683]
[1738831263159,4.9525,201.83,201.79,0.03203683]
[1738831263464,0.0376879,201.84,201.79,0.03203683]
[1738831265467,4.9527,201.82,201.79,0.03203683]
[1738831265670,0.0376879,201.84,201.79,0.03203683]
[1738831266666,4.953,201.81,201.79,0.03203683]
[1738831267068,0.0376879,201.84,201.79,0.03203683]
[1738831267761,4.9527,201.82,201.79,0.03203683]
[1738831268268,4.9532,201.81,201.79,0.03203683]
[1738831268468,0.0376879,201.84,201.79,0.03203683]
[1738831269771,4.953,201.81,201.79,0.03203683]
[1738831269970,0.0376879,201.84,201.79,0.03203683]
[1738831270471,4.9532,201.8,201.79,0.03203683]
[1738831271477,4.9529,201.82,201.79,0.03203683]
[1738831272376,0.0376879,201.84,201.79,0.03203683]
[1738831273575,4.953,201.81,201.79,0.03203683]
[1738831274675,4.953,201.81,201.79,8.51624864]
[1738831274976,4.9526,201.83,201.79,8.51624864]
[1738831276272,4.9528,201.82,201.79,8.51624864]
[1738831276774,0.0376879,201.84,201.79,8.51624864]
[1738831277774,4.9531,201.81,201.79,8.51624864]
[1738831278972,4.9532,201.8,201.79,8.51624864]
[1738831281477,0.0376879,201.84,201.79,8.51624864]
[1738831281879,4.9531,201.81,201.79,8.51624864]
[1738831282175,8.52189971,201.84,201.79,0.03203683]
[1738831283078,4.9532,201.8,201.79,0.03203683]
[1738831284678,4.9541,201.77,201.75,8.48421181]
[1738831284876,8.48421181,201.8,201.73,8.48421181]
[1738831285175,8.48421181,201.78,201.72,27.33617317]
[1738831286081,0.03297795,201.77,201.73,0.03399774]
[1738831286791,4.9547,201.74,201.73,0.03399774]
[1738831288885,4.9555,201.71,201.68,27.33617317]
[1738831290789,4.9555,201.71,201.67,8.52105445]
[1738831291088,4.9555,201.71,201.69,8.48421181]
[1738831291885,0.03355615,201.72,201.69,8.48421181]
[1738831292090,0.03355615,201.72,201.71,8.48421181]
[1738831295592,0.03355615,201.72,201.67,0.03684264]
[1738831295794,0.03355615,201.72,201.67,8.52105445]
[1738831296296,0.03355615,201.72,201.71,8.48421181]
[1738831296989,0.03355615,201.72,201.71,13.43961181]
[1738831297993,0.03355615,201.72,201.71,8.48421181]
[1738831299196,8.48421181,201.84,201.74,4.9544]
[1738831299386,8.48421181,201.84,201.77,8.48421181]
[1738831299592,8.48421181,201.82,201.73,8.48421181]
[1738831299792,8.48421181,201.8,201.73,8.48421181]
[1738831300291,0.03411721,201.79,201.74,0.03464473]
[1738831300687,4.9546,201.75,201.74,0.03464473]
[1738831305000,4.9555,201.71,201.64,4.9569]
[1738831306199,6.6256,201.78,201.63,14.73362786]
[1738831306200,0.03185184,201.7,201.65,0.03464314]
[1738831306501,0.03185184,201.7,201.63,14.73362786]
[1738831306502,0.03185184,201.7,201.6,20.09947115]
[1738831306694,0.03185184,201.7,201.65,0.03257951]
[1738831307396,4.9563,201.68,201.65,0.03257951]
[1738831307697,0.03185184,201.7,201.65,0.03257951]
[1738831307902,0.03185184,201.7,201.65,4.98917951]
[1738831309196,0.03185184,201.7,201.65,0.03257951]
[1738831309403,0.03185184,201.7,201.68,4.956]
[1738831309603,0.03185184,201.7,201.67,13.26542786]
[1738831310103,0.03185184,201.7,201.68,4.9561]
[1738831310309,0.03185184,201.7,201.67,13.26542786]
[1738831310602,0.03185184,201.7,201.65,0.03257951]
[1738831310805,4.98765184,201.7,201.65,0.03257951]
[1738831311002,0.03185184,201.7,201.65,0.03257951]
[1738831312711,4.98755184,201.7,201.65,0.03257951]
[1738831313408,4.9565,201.67,201.65,0.03257951]
[1738831316711,4.9562,201.68,201.65,0.03257951]
[1738831317808,4.9559,201.69,201.65,0.03257951]
[1738831320703,0.03185184,201.7,201.65,0.03257951]
[1738831320910,4.98755184,201.7,201.65,0.03257951]
[1738831321209,0.03185184,201.7,201.65,0.03257951]
[1738831321409,4.9563,201.68,201.65,0.03257951]
[1738831323106,0.03185184,201.7,201.65,0.03257951]
[1738831323107,4.9566,201.66,201.65,0.03257951]
[1738831325313,13.27826474,201.69,201.57,6.83404329]
[1738831325507,14.86936474,201.69,201.57,6.83404329]
[1738831326209,4.9577,201.62,201.57,6.83404329]
[1738831326708,4.99476931,201.62,201.57,6.8705983]
[1738831328115,4.99476931,201.62,201.57,0.03655501]
[1738831329510,4.9579,201.61,201.57,0.03655501]
[1738831330311,0.03706931,201.62,201.57,0.03655501]
[1738831331408,4.9586,201.58,201.57,0.03655501]
[1738831337225,0.03706931,201.62,201.47,40.61443791]
[1738831337226,13.27826474,201.59,201.47,40.61443791]
[1738831337413,4.96,201.53,201.47,32.29747317]
[1738831338214,4.9592,201.56,201.49,4.9607]
[1738831338421,0.03801604,201.52,201.49,4.9607]
[1738831340621,0.03801604,201.52,201.48,4.99544243]
[1738831341921,0.03801604,201.52,201.48,0.03444243]
[1738831343722,4.9604,201.51,201.48,0.03444243]
[1738831344827,4.9604,201.51,201.48,8.54401455]
[1738831345224,0.03801604,201.52,201.48,0.03444243]
[1738831345826,4.9604,201.51,201.48,8.54401455]
[1738831346027,0.03801604,201.52,201.5,8.50957212]
[1738831346529,4.99811604,201.52,201.5,8.50957212]
[1738831346729,4.99811604,201.52,201.48,8.54401455]
[1738831350228,4.9607,201.5,201.48,8.54401455]
[1738831350731,0.03801604,201.52,201.48,8.54401455]
[1738831350931,4.99831604,201.52,201.48,8.54401455]
[1738831356631,0.03801604,201.52,201.48,0.03444243]
[1738831356841,13.47037212,201.49,201.48,0.03444243]
[1738831359739,4.9608,201.49,201.48,0.03444243]
[1738831363241,4.9618,201.45,201.42,8.50957212]
[1738831364441,0.0325068,201.46,201.42,8.50957212]
[1738831365352,0.0325068,201.46,201.44,8.50957212]
[1738831366546,0.0325068,201.46,201.45,4.9618]
[1738831371157,4.9596,201.54,201.47,4.9612]
[1738831371352,4.9596,201.54,201.5,8.50957212]
[1738831372257,4.99620796,201.54,201.5,8.54166974]
[1738831373158,0.03660796,201.54,201.5,13.50216974]
[1738831379061,0.03660796,201.54,201.51,4.9601]
[1738831379261,0.03660796,201.54,201.5,8.54166974]
[1738831380767,0.03660796,201.54,201.5,0.03209762]
[1738831381965,0.03660796,201.54,201.5,4.99259762]
[1738831383064,0.03660796,201.54,201.5,13.50216974]
[1738831383265,0.03660796,201.54,201.51,4.9602]
[1738831383464,0.03660796,201.54,201.52,8.50957212]
[1738831383967,0.03660796,201.54,201.53,4.9598]
[1738831384271,10.08567212,201.65,201.52,8.50957212]
[1738831384465,10.08567212,201.65,201.58,8.50957212]
[1738831385363,0.0344037,201.64,201.59,0.03344832]
[1738831385864,8.50957212,201.63,201.59,0.03344832]
[1738831386065,8.50957212,201.61,201.59,0.03344832]
[1738831386867,13.46757212,201.61,201.59,0.03344832]
[1738831387070,8.50957212,201.61,201.59,0.03344832]
[1738831387273,0.0344037,201.64,201.59,0.03344832]
[1738831387274,8.50957212,201.63,201.59,0.03344832]
[1738831388872,13.46697212,201.63,201.59,0.03344832]
[1738831392276,4.9574,201.63,201.59,0.03344832]
[1738831393178,13.46697212,201.63,201.59,0.03344832]
[1738831393677,4.9577,201.62,201.59,0.03344832]
[1738831394478,4.9581,201.6,201.59,0.03344832]
[1738831394669,8.50957212,201.61,201.5,8.50957212]
[1738831394868,4.9596,201.55,201.49,4.9607]
[1738831395375,8.50957212,201.54,201.48,8.50957212]
[1738831395572,8.50957212,201.54,201.47,6.4613]
[1738831395780,8.50957212,201.54,201.47,6.88025716]
[1738831395977,4.99463245,201.53,201.48,0.03444746]
[1738831397073,4.9608,201.5,201.48,0.03444746]
[1738831397278,8.50957212,201.52,201.48,0.03444746]
[1738831398076,8.50957212,201.5,201.48,0.03444746]
[1738831398281,4.9608,201.49,201.48,0.03444746]
[1738831399883,13.47017212,201.5,201.48,0.03444746]
[1738831400180,4.9606,201.5,201.48,0.03444746]
[1738831403285,8.50957212,201.52,201.48,0.03444746]
[1738831403584,4.9608,201.49,201.48,0.03444746]
[1738831405985,8.50957212,201.52,201.48,0.03444746]
[1738831406283,4.9606,201.5,201.48,0.03444746]
[1738831408384,13.46987212,201.52,201.48,0.03444746]
[1738831408589,4.9603,201.52,201.48,0.03444746]
[1738831413889,4.9603,201.51,201.48,0.03444746]
[1738831414389,8.50957212,201.52,201.48,0.03444746]
[1738831414588,4.9608,201.5,201.48,0.03444746]
[1738831414991,4.9608,201.49,201.48,0.03444746]
[1738831433404,6.5611,201.49,201.48,0.03444746]
[1738831440907,13.47017212,201.5,201.48,0.03444746]
[1738831441613,8.50957212,201.5,201.48,0.03444746]
[1738831444615,13.47017212,201.5,201.48,0.03444746]
[1738831445215,8.50957212,201.5,201.48,0.03444746]
[1738831446819,4.9608,201.49,201.48,0.03444746]
[1738831450412,8.50957212,201.5,201.41,4.9627]
[1738831450615,4.9614,201.47,201.41,4.9627]
[1738831451624,0.03760612,201.46,201.42,0.03765169]
[1738831452518,0.03760612,201.46,201.42,8.54722381]
[1738831453018,0.03760612,201.46,201.44,8.50957212]
[1738831453223,0.03760612,201.46,201.45,4.9618]
[1738831458923,4.9606,201.5,201.46,4.9614]
[1738831459223,8.50957212,201.56,201.48,8.50957212]
[1738831459718,4.96,201.53,201.48,13.47057212]
[1738831459919,8.50957212,201.56,201.48,13.47057212]
[1738831460119,0.03202854,201.53,201.48,13.5028958]
[1738831460318,4.99202854,201.53,201.48,8.5418958]
[1738831460823,26.33077239,201.52,201.48,0.03232368]
[1738831461020,26.33077239,201.52,201.49,8.50957212]
[1738831461320,26.33077239,201.51,201.49,8.50957212]
[1738831461518,11.29131537,201.51,201.49,8.50957212]
[1738831461725,4.99202854,201.53,201.49,8.50957212]
[1738831462223,4.99202854,201.53,201.49,8.54309453]
[1738831462629,4.99202854,201.53,201.5,17.7292219]
[1738831462919,4.99202854,201.53,201.5,11.54359546]
[1738831463225,4.99202854,201.53,201.51,20.85991292]
[1738831463625,4.99202854,201.53,201.52,20.85991292]
[1738831464326,4.99202854,201.53,201.52,4.43984441]
[1738831465028,4.99202854,201.53,201.49,0.03352241]
[1738831466030,8.50957212,201.52,201.49,0.03352241]
[1738831466231,13.47017212,201.5,201.49,0.03352241]
[1738831466729,4.9618,201.45,201.43,6.88025716]
[1738831467226,8.50957212,201.46,201.43,6.88025716]
[1738831467432,13.47117212,201.46,201.41,6.88025716]
[1738831467930,4.9618,201.45,201.41,6.88025716]
[1738831468131,8.5439245,201.46,201.41,6.88025716]
[1738831468430,8.50957212,201.44,201.41,6.88025716]
[1738831469629,4.9625,201.42,201.41,6.88025716]
[1738831470330,4.9625,201.42,201.38,82.47192049]
[1738831470331,4.9625,201.42,201.37,10.13007212]
[1738831470729,4.99714198,201.42,201.37,10.13007212]
[1738831471735,4.99714198,201.42,201.37,8.50957212]
[1738831471935,4.99714198,201.42,201.35,13.47377212]
[1738831472533,4.9628,201.41,201.35,13.47377212]
[1738831473030,8.5442141,201.42,201.35,8.50957212]
[1738831473334,4.963,201.4,201.35,8.50957212]
[1738831474338,4.9633,201.39,201.35,8.50957212]
[1738831476738,8.5442141,201.42,201.35,8.50957212]
[1738831477040,4.963,201.4,201.35,13.47377212]
[1738831479142,4.963,201.4,201.37,8.50957212]
[1738831479341,0.03464198,201.42,201.38,4.9635]
[1738831479541,0.03464198,201.42,201.39,8.50957212]
[1738831480041,0.03464198,201.42,201.4,4.9628]
[1738831482435,0.03464198,201.42,201.33,1.516]
[1738831482436,4.9632,201.4,201.34,4.9644]
[1738831482637,8.50957212,201.41,201.33,1.516]
[1738831482638,8.50957212,201.37,201.33,1.516]
[1738831482847,8.50957212,201.37,201.31,1.5496]
[1738831483038,8.50957212,201.35,201.3,6.88025716]
[1738831483238,8.50957212,201.33,201.3,6.88025716]
[1738831483638,8.50957212,201.31,201.3,6.88025716]
[1738831484134,8.50957212,201.31,201.29,2.865e-05]
[1738831484341,8.50957212,201.29,201.22,4.93827733]
[1738831484541,8.50957212,201.23,201.22,4.93827733]
[1738831485941,8.50957212,201.25,201.22,4.93827733]
[1738831486342,8.50957212,201.25,201.17,82.55443442]
[1738831486539,8.50957212,201.25,201.17,91.06400654]
[1738831486744,0.03149132,201.23,201.17,82.55443442]
[1738831488142,0.03149132,201.23,201.17,100.85884841]
[1738831488343,0.03149132,201.23,201.17,87.52303442]
[1738831488647,10.63307517,201.19,201.17,18.30441399]
[1738831488840,0.89227517,201.19,201.17,18.30441399]
[1738831490236,0.03149132,201.23,201.19,4.9682]
[1738831491345,0.03149132,201.23,201.18,4.9682]
[1738831491539,0.03149132,201.23,201.17,13.33581399]
[1738831492446,0.03149132,201.23,201.2,4.9678]
[1738831495153,0.03149132,201.23,201.21,4.9676]
[1738831498249,0.03149132,201.23,201.21,4.9675]
[1738831499255,0.03149132,201.23,201.22,4.9675]
[1738831499455,0.03149132,201.23,201.17,13.33581399]
[1738831499955,0.03149132,201.23,201.21,4.9675]
[1738831500155,0.03149132,201.23,201.17,13.33581399]
[1738831500356,40.99620882,201.23,201.2,13.33581399]
[1738831501556,0.03149132,201.23,201.2,13.33581399]
[1738831501756,0.03149132,201.23,201.22,4.9675]
[1738831504161,0.03149132,201.23,201.21,4.9677]
[1738831504856,17.16566997,201.23,201.21,4.9677]
[1738831505453,17.16566997,201.23,201.22,4.9675]
[1738831507356,17.16566997,201.23,201.22,13.49979399]
[1738831510861,0.03149132,201.23,201.15,3.1781]
[1738831511056,8.56378531,201.23,201.15,11.71039399]
[1738831511259,8.53229399,201.21,201.15,3.1781]
[1738831511460,4.9684,201.19,201.15,8.1472]
[1738831511964,4.9684,201.19,201.07,195.48]
[1738831511965,8.53229399,201.17,201.09,8.53229399]
[1738831512165,4.9692,201.16,201.1,4.9704]
[1738831512564,0.03780987,201.15,201.1,4.9704]
[1738831514062,0.03780987,201.15,201.09,13.50299399]
[1738831514265,0.03780987,201.15,201.09,8.53229399]
[1738831514768,0.03780987,201.15,201.09,13.50299399]
[1738831515360,13.53940386,201.15,201.09,8.53229399]
[1738831515568,0.03780987,201.15,201.09,8.53229399]
[1738831516571,54.76857159,201.13,201.09,8.53229399]
[1738831516974,54.76857159,201.13,201.07,13.50329399]
[1738831517169,63.30086558,201.13,201.05,8.53229399]
[1738831517370,8.53229399,201.11,201.05,8.53229399]
[1738831517876,63.30086558,201.11,201.05,8.53229399]
[1738831518269,4.9717,201.05,201.0,8.53229399]
[1738831518472,8.53229399,201.07,201.0,8.53229399]
[1738831518774,0.03462582,201.05,201.03,4.9721]
[1738831519675,0.03462582,201.05,201.04,13.50419399]
[1738831521676,0.03462582,201.05,201.04,8.53229399]
[1738831523375,0.03462582,201.05,201.04,13.50419399]
[1738831527175,0.03462582,201.05,201.0,8.53229399]
[1738831527377,5.00652582,201.05,201.0,13.50499399]
[1738831527678,5.00652582,201.05,201.0,8.53229399]
[1738831528074,0.03462582,201.05,201.02,4.9723]
[1738831528673,0.03462582,201.05,201.01,4.9725]
[1738831529272,5.00652582,201.05,201.0,8.53229399]
[1738831529476,13.53881981,201.05,200.99,4.9729]
[1738831529679,8.56691981,201.05,200.96,8.53229399]
[1738831529879,8.53229399,201.03,200.96,8.53229399]
[1738831530082,4.9724,201.02,200.97,4.9736]
[1738831530276,8.53229399,200.99,200.92,8.53229399]
[1738831530580,13.50549399,200.99,200.93,4.9746]
[1738831530772,0.03728249,200.98,200.92,8.53229399]
[1738831531882,0.03728249,200.98,200.94,4.9743]
[1738831532381,0.03728249,200.98,200.93,4.9744]
[1738831532575,0.03728249,200.98,200.92,8.53229399]
[1738831532878,0.03728249,200.98,200.95,4.9739]
[1738831533181,11.75079399,201.01,200.94,8.53229399]
[1738831533380,0.03264719,200.99,200.94,8.53229399]
[1738831533882,0.03264719,200.99,200.96,4.9738]
[1738831534781,0.03264719,200.99,200.97,4.9734]
[1738831535082,0.03264719,200.99,200.96,8.53229399]
[1738831535278,28.9459845,201.03,200.96,8.53229399]
[1738831535576,0.03737887,201.0,200.98,8.53229399]
[1738831535782,20.41369051,201.03,200.98,8.53229399]
[1738831535984,0.03255422,201.01,201.0,4.9727]
[1738831537685,0.03255422,201.01,200.98,13.50539399]
[1738831538284,0.03255422,201.01,200.99,4.9731]
[1738831539581,0.03255422,201.01,200.97,4.9735]
[1738831540183,0.03255422,201.01,200.96,8.53229399]
[1738831540381,0.03255422,201.01,200.94,8.53229399]
[1738831541286,0.03255422,201.01,200.97,4.9734]
[1738831541585,0.03255422,201.01,200.96,8.53229399]
[1738831541784,0.03255422,201.01,200.98,4.9733]
[1738831542481,0.03255422,201.01,200.96,8.53229399]
[1738831544675,0.03255422,201.01,201.0,4.9729]
[1738831545375,0.03255422,201.01,200.98,13.50559399]
[1738831545686,0.03255422,201.01,200.98,4.9733]
[1738831545978,0.03255422,201.01,201.0,13.50519399]
[1738831547278,54.40751602,201.07,201.0,8.53229399]
[1738831547583,46.46491602,201.07,201.06,8.53229399]
[1738831547784,46.46491602,201.07,201.06,13.50369399]
[1738831548181,99.90879897,201.15,201.06,8.53229399]
[1738831548385,104.87799897,201.15,201.1,8.53229399]
[1738831548588,0.03429231,201.13,201.1,8.53229399]
[1738831548787,0.03429231,201.13,201.1,8.56453185]
[1738831550584,0.03429231,201.13,201.1,5.00253786]
[1738831551795,0.03429231,201.13,201.1,0.03223786]
[1738831552390,0.03429231,201.13,201.12,4.9699]
[1738831556507,0.03429231,201.13,201.12,18.31595568]
[1738831556908,205.32358873,201.22,201.16,4.9687]
[1738831557303,205.32358873,201.22,201.12,13.34605568]
[1738831557605,14.85605568,201.26,201.13,4.9694]
[1738831557807,4.9685,201.18,201.13,4.9694]
[1738831558106,4.9685,201.18,201.17,0.03386029]
[1738831558504,0.03752181,201.2,201.17,0.03386029]
[1738831558708,0.03752181,201.2,201.19,4.9682]
[1738831562008,0.03752181,201.2,201.17,5.00226029]
[1738831562407,0.03752181,201.2,201.17,0.03386029]
[1738831562605,0.03752181,201.2,201.19,4.9682]
[1738831564113,6.5016,201.28,201.24,4.9669]
[1738831564609,1.5354,201.28,201.25,4.9667]
[1738831565111,6.5014,201.28,201.23,4.9672]
[1738831565313,1.5354,201.28,201.24,0.03550983]
[1738831566316,4.9662,201.27,201.24,0.03550983]
[1738831568409,1.5354,201.28,201.24,0.03550983]
[1738831569209,1.5354,201.28,201.24,5.00220983]
[1738831569414,4.99892217,201.29,201.24,5.00220983]
[1738831569815,0.03302217,201.29,201.24,0.03550983]
[1738831570019,4.966,201.28,201.24,0.03550983]
[1738831570208,0.03302217,201.29,201.24,0.03550983]
[1738831570518,4.9664,201.27,201.24,0.03550983]
[1738831572817,4.9667,201.25,201.24,0.03550983]
[1738831576516,0.03302217,201.29,201.24,0.03550983]
[1738831576820,0.03302217,201.29,201.25,8.53065389]
[1738831577321,0.03302217,201.29,201.26,4.9664]
[1738831577525,0.03302217,201.29,201.27,8.53065389]
[1738831577823,0.03302217,201.29,201.27,13.49665389]
[1738831578723,0.03302217,201.29,201.27,4.966]
[1738831579217,4.99882217,201.29,201.24,13.35904169]
[1738831579523,4.99882217,201.29,201.24,0.03550983]
[1738831580023,0.03302217,201.29,201.24,0.03550983]
[1738831581221,0.03302217,201.29,201.24,13.35904169]
[1738831582615,0.03302217,201.29,201.28,4.9659]
[1738831583921,20.34898907,201.33,201.27,13.32353186]
[1738831584225,20.34898907,201.33,201.32,18.28853186]
[1738831584523,54.20148872,201.36,201.32,13.32353186]
[1738831584725,54.20148872,201.36,201.35,18.28773186]
[1738831585815,0.03301101,201.38,201.35,13.32353186]
[1738831586021,42.71077714,201.39,201.38,4.9635]
[1738831586223,42.71077714,201.39,201.38,18.28703186]
[1738831586424,22.85694531,201.39,201.38,18.28703186]
[1738831586625,14.96802314,201.39,201.38,18.28703186]
[1738831586924,5.52612314,201.39,201.38,18.28703186]
[1738831587220,3.43117097,201.4,201.39,4.9632]
[1738831587725,0.0348375,201.41,201.4,4.963]
[1738831588519,0.0348375,201.41,201.38,13.32353186]
[1738831589026,0.0348375,201.41,201.38,18.28673186]
[1738831589228,0.0348375,201.41,201.38,13.32353186]
[1738831589727,0.0348375,201.41,201.39,4.963]
[1738831590328,0.0348375,201.41,201.38,13.32353186]
[1738831590626,0.0348375,201.41,201.4,4.963]
[1738831591631,0.0348375,201.41,201.38,18.28673186]
[1738831591829,0.0348375,201.41,201.38,13.32353186]
[1738831592828,0.0348375,201.41,201.39,4.9632]
[1738831593231,0.0348375,201.41,201.37,4.99943492]
[1738831594335,4.9976375,201.41,201.37,4.99943492]
[1738831595539,0.0348375,201.41,201.37,0.03573492]
[1738831595834,0.0348375,201.41,201.38,13.32353186]
[1738831596328,0.0348375,201.41,201.37,0.03573492]
[1738831596734,4.9976375,201.41,201.37,4.99943492]
[1738831597138,0.0348375,201.41,201.37,0.03573492]
[1738831598141,0.0348375,201.41,201.39,4.9632]
[1738831598740,0.0348375,201.41,201.38,4.9634]
[1738831599542,4.9975375,201.41,201.37,4.99943492]
[1738831600742,0.0348375,201.41,201.37,0.03573492]
[1738831600943,0.0348375,201.41,201.38,4.9633]
[1738831601846,0.0348375,201.41,201.37,0.03573492]
[1738831602345,0.0348375,201.41,201.39,4.9631]
[1738831603141,0.0348375,201.41,201.37,0.03573492]
[1738831603343,0.0348375,201.41,201.38,4.9635]
[1738831603942,4.9632,201.4,201.37,0.03573492]
[1738831604244,0.0348375,201.41,201.37,0.03573492]
[1738831604544,4.963,201.4,201.37,0.03573492]
[1738831605641,0.0348375,201.41,201.37,0.03573492]
[1738831605941,4.9635,201.39,201.37,0.03573492]
[1738831607045,4.963,201.4,201.37,0.03573492]
[1738831607545,8.55472993,201.41,201.37,0.03573492]
[1738831607741,4.9634,201.39,201.37,0.03573492]
[1738831608142,4.9635,201.38,201.37,0.03573492]
[1738831608947,4.9632,201.39,201.37,0.03573492]
[1738831610248,0.0348375,201.41,201.38,8.51989243]
[1738831610452,0.0348375,201.41,201.4,8.51989243]
[1738831620650,4.9975375,201.41,201.4,8.51989243]
[1738831620842,4.9975375,201.41,201.38,8.51989243]
[1738831621149,0.0348375,201.41,201.37,0.03573492]
[1738831622251,0.0348375,201.41,201.38,8.51989243]
[1738831622946,4.9976375,201.41,201.38,8.51989243]
[1738831624457,4.9631,201.4,201.38,8.51989243]
[1738831624655,0.0348375,201.41,201.37,0.03573492]
[1738831626156,8.55472993,201.41,201.37,0.03573492]
[1738831626856,8.55472993,201.41,201.34,8.51989243]
[1738831628156,8.55472993,201.41,201.35,0.03589139]
[1738831628751,4.9635,201.38,201.35,0.03589139]
[1738831628953,0.0348375,201.41,201.36,8.51989243]
[1738831629153,0.0348375,201.41,201.38,8.51989243]
[1738831629356,4.9976375,201.41,201.38,8.51989243]
[1738831629947,0.0348375,201.41,201.38,8.51989243]
[1738831631257,0.0348375,201.41,201.4,8.51989243]
[1738831635863,0.0348375,201.41,201.38,8.51989243]
[1738831636062,4.9977375,201.41,201.38,8.51989243]
[1738831636361,0.0348375,201.41,201.4,8.51989243]
[1738831640058,0.0348375,201.41,201.38,8.51989243]
[1738831640262,0.0348375,201.41,201.36,4.9637]
[1738831640263,0.0348375,201.41,201.36,8.51989243]
[1738831641266,0.0348375,201.41,201.38,8.51989243]
[1738831642065,0.0348375,201.41,201.4,8.51989243]
[1738831643362,0.0348375,201.41,201.36,8.51989243]
[1738831644167,4.9635,201.38,201.36,8.51989243]
[1738831646063,8.51989243,201.39,201.35,0.03589139]
[1738831646268,4.964,201.36,201.35,0.03589139]
[1738831646568,4.7325,201.4,201.35,0.03589139]
[1738831646775,4.9633,201.39,201.35,0.03589139]
[1738831646975,4.7325,201.4,201.35,0.03589139]
[1738831647679,9.6956,201.4,201.35,4.99989139]
[1738831647977,9.6956,201.4,201.36,8.51989243]
[1738831648176,4.7325,201.4,201.36,8.51989243]
[1738831648376,3.1241,201.4,201.36,13.48379243]
[1738831648873,0.0348375,201.41,201.38,8.51989243]
[1738831649180,0.0348375,201.41,201.4,8.51989243]
[1738831651270,0.0348375,201.41,201.4,13.48289243]
[1738831662690,3.1098,201.47,201.4,8.51989243]
[1738831662885,3.1098,201.47,201.45,13.48139243]
[1738831664187,8.0711,201.47,201.44,0.03483791]
[1738831665491,8.0711,201.47,201.44,4.99683791]
[1738831667485,0.03261658,201.48,201.44,0.03483791]
[1738831667785,0.03261658,201.48,201.46,4.9613]
[1738831668290,0.03261658,201.48,201.45,8.51989243]
[1738831668589,0.03261658,201.48,201.47,4.9613]
[1738831671492,0.03261658,201.48,201.47,13.48119243]
[1738831672688,0.03261658,201.48,201.47,8.51989243]
[1738831674195,0.03261658,201.48,201.47,13.48119243]
[1738831675190,0.03261658,201.48,201.47,8.51989243]
[1738831675395,0.03261658,201.48,201.44,0.03483791]
[1738831675895,4.99371658,201.48,201.44,4.99683791]
[1738831676089,0.03261658,201.48,201.44,0.03483791]
[1738831676489,0.03261658,201.48,201.45,13.48139243]
[1738831676700,0.03261658,201.48,201.47,8.51989243]
[1738831677895,0.03261658,201.48,201.47,13.48119243]
[1738831683001,3.0413,201.56,201.52,4.9599]
[1738831683206,3.0413,201.56,201.52,13.47979243]
[1738831684304,3.07682352,201.56,201.53,4.9598]
[1738831685199,0.03552352,201.56,201.53,4.9598]
[1738831685400,0.03552352,201.56,201.54,8.51989243]
[1738831685605,0.03552352,201.56,201.54,13.47929243]
[1738831685908,0.03552352,201.56,201.54,8.51989243]
[1738831686100,0.03552352,201.56,201.55,4.9593]
[1738831688010,4.5642,201.63,201.54,8.51989243]
[1738831688208,4.5642,201.63,201.46,3.48]
[1738831688209,4.5642,201.63,201.6,4.958]
[1738831688409,4.5642,201.63,201.59,8.51989243]
[1738831689309,4.60234933,201.63,201.59,8.55358987]
[1738831689710,13.12224176,201.63,201.59,0.03369744]
[1738831689911,13.12224176,201.63,201.57,8.51989243]